[Event "Snabb-SM för veteraner, 65+ 2019"]
[Site "Schackcentrum, Vegagatan 20, Gothenburg, Sweden"]
[Date "2019.10.05"]
[Round "5.3"]
[White "Przysuski, Feliks"]
[Black "Green, Per"]
[Result "1/2-1/2"]
[TimeControl "15 minutes + 10 seconds per move from move one"]
[WhiteFideId "1712489"]
[BlackFideId "1703811"]
[WhiteElo "2008"]
[BlackElo "1923"]

1. e4 {[%clk 00:15:14]} {[%emt 00:00:05]} e6 {[%clk 00:15:00]} {[%emt
00:00:19]} 2. d4 {[%clk 00:15:21]} {[%emt 00:00:05]} d5 {[%clk 00:15:08]}
{[%emt 00:00:03]} 3. Nd2 {[%clk 00:15:29]} {[%emt 00:00:01]} Nf6 {[%clk
00:15:11]} {[%emt 00:00:07]} 4. e5 {[%clk 00:15:36]} {[%emt 00:00:03]} Nfd7
{[%clk 00:15:20]} 5. f4 {[%clk 00:15:45]} c5 {[%clk 00:15:29]} {[%emt
00:00:03]} 6. c3 {[%clk 00:15:54]} cxd4 {[%clk 00:15:11]} {[%emt 00:00:28]} 7.
cxd4 {[%clk 00:16:01]} {[%emt 00:00:02]} Nc6 {[%clk 00:15:20]} {[%emt
00:00:01]} 8. Ndf3 {[%clk 00:16:09]} {[%emt 00:00:02]} a5 {[%clk 00:15:28]}
{[%emt 00:00:03]} 9. Bd3 {[%clk 00:16:09]} {[%emt 00:00:10]} a4 {[%clk
00:15:35]} {[%emt 00:00:03]} 10. Ne2 {[%clk 00:16:10]} {[%emt 00:00:09]} a3
{[%clk 00:15:19]} {[%emt 00:00:26]} 11. O-O {[%clk 00:16:03]} {[%emt 00:00:17]}
axb2 {[%clk 00:15:15]} {[%emt 00:00:14]} 12. Bxb2 {[%clk 00:16:11]} {[%emt
00:00:01]} Nb6 {[%clk 00:14:17]} {[%emt 00:01:08]} 13. Nd2 {[%clk 00:15:27]}
{[%emt 00:00:54]} Na4 {[%clk 00:13:45]} {[%emt 00:00:42]} 14. Rb1 {[%clk
00:15:10]} {[%emt 00:00:27]} Nb4 {[%clk 00:12:42]} {[%emt 00:01:13]} 15. Bb5+
{[%clk 00:14:50]} {[%emt 00:00:30]} Bd7 {[%clk 00:12:50]} {[%emt 00:00:01]} 16.
Bxd7+ {[%clk 00:14:55]} {[%emt 00:00:04]} Qxd7 {[%clk 00:12:58]} {[%emt
00:00:02]} 17. Qb3 {[%clk 00:14:35]} {[%emt 00:00:30]} Nxb2 {[%clk 00:06:54]}
{[%emt 00:06:14]} 18. Rxb2 {[%clk 00:14:37]} {[%emt 00:00:07]} Rb8 {[%clk
00:06:47]} {[%emt 00:00:18]} 19. a3 {[%clk 00:14:36]} {[%emt 00:00:11]} Nc6
{[%clk 00:06:54]} {[%emt 00:00:02]} 20. Kh1 {[%clk 00:13:18]} {[%emt 00:01:28]}
g6 {[%clk 00:06:34]} {[%emt 00:00:31]} 21. a4 {[%clk 00:11:21]} {[%emt
00:02:07]} Be7 {[%clk 00:06:33]} {[%emt 00:00:11]} 22. Qb5 {[%clk 00:11:18]}
{[%emt 00:00:13]} Bd8 {[%clk 00:03:35]} {[%emt 00:03:09]} 23. Rc1 {[%clk
00:11:11]} {[%emt 00:00:17]} Na5 {[%clk 00:03:05]} {[%emt 00:00:39]} 24. Qxd7+
{[%clk 00:09:06]} {[%emt 00:02:15]} Kxd7 {[%clk 00:03:13]} {[%emt 00:00:02]} 25.
Nb3 {[%clk 00:09:03]} {[%emt 00:00:11]} Nxb3 {[%clk 00:02:00]} {[%emt
00:01:25]} 26. Rxb3 {[%clk 00:09:10]} {[%emt 00:00:02]} Ba5 {[%clk 00:02:05]}
{[%emt 00:00:06]} 27. Rcb1 {[%clk 00:08:02]} {[%emt 00:01:19]} b6 {[%clk
00:01:34]} {[%emt 00:00:41]} 28. g3 {[%clk 00:07:25]} {[%emt 00:00:46]} Rhc8
{[%clk 00:01:43]} {[%emt 00:00:02]} 29. R1b2 {[%clk 00:07:23]} {[%emt
00:00:11]} Rc4 {[%clk 00:01:41]} {[%emt 00:00:12]} 30. Kg2 {[%clk 00:06:09]}
{[%emt 00:01:23]} Rxa4 {[%clk 00:01:32]} {[%emt 00:00:21]} 31. Kf3 {[%clk
00:06:17]} {[%emt 00:00:02]} Rc8 {[%clk 00:01:38]} {[%emt 00:00:05]} 32. Ke3
{[%clk 00:06:22]} {[%emt 00:00:04]} Rac4 {[%clk 00:01:39]} {[%emt 00:00:11]} 33.
Kd3 {[%clk 00:06:28]} {[%emt 00:00:03]} R8c6 {[%clk 00:01:27]} {[%emt
00:00:22]} 34. Ra2 {[%clk 00:05:27]} {[%emt 00:01:11]} h5 {[%clk 00:01:17]}
{[%emt 00:00:21]} 35. Rb5 {[%clk 00:05:16]} {[%emt 00:00:21]} Kc7 {[%clk
00:00:45]} {[%emt 00:00:42]} 36. Rb3 {[%emt 00:00:25]} Kd7 {[%emt 00:00:19]} 37.
Rb5 {[%clk 00:04:37]} {[%emt 00:00:04]} Rc7 {[%clk 00:00:40]} {[%emt 00:00:15]}
38. Rb3 {[%clk 00:04:38]} {[%emt 00:00:09]} Ra7 {[%clk 00:00:24]} {[%emt
00:00:27]} 39. Rab2 {[%clk 00:04:31]} {[%emt 00:00:16]} Ra4 {[%clk 00:00:29]}
{[%emt 00:00:06]} 40. Nc3 {[%clk 00:04:03]} {[%emt 00:00:38]} Bxc3 {[%clk
00:00:34]} {[%emt 00:00:04]} 41. Rxc3 {[%clk 00:04:06]} {[%emt 00:00:07]} Rb7
{[%clk 00:00:26]} {[%emt 00:00:18]} 42. Rcb3 {[%clk 00:04:08]} {[%emt
00:00:08]} Ra6 {[%clk 00:00:36]} {[%emt 00:00:01]} 43. Rc2 {[%clk 00:04:12]}
{[%emt 00:00:06]} b5 {[%clk 00:00:41]} {[%emt 00:00:04]} 44. Rcb2 {[%clk
00:04:19]} {[%emt 00:00:02]} Ra5 {[%clk 00:00:43]} {[%emt 00:00:08]} 45. Kc3
{[%clk 00:04:06]} {[%emt 00:00:23]} Kc6 {[%clk 00:00:43]} {[%emt 00:00:10]} 46.
Kd3 {[%clk 00:04:08]} {[%emt 00:00:08]} Ra4 {[%clk 00:00:48]} {[%emt 00:00:05]}
47. Rb4 {[%clk 00:04:06]} {[%emt 00:00:12]} Rxb4 {[%clk 00:00:51]} {[%emt
00:00:07]} 48. Rxb4 {[%clk 00:04:14]} {[%emt 00:00:02]} Ra7 {[%clk 00:01:01]}
{[%emt 00:00:01]} 49. Rb3 {[%clk 00:04:17]} {[%emt 00:00:07]} Ra1 {[%clk
00:01:07]} {[%emt 00:00:04]} 50. h4 {[%clk 00:04:13]} {[%emt 00:00:13]} Rg1
{[%clk 00:01:07]} {[%emt 00:00:10]} 51. Kc2 {[%clk 00:04:16]} {[%emt 00:00:05]}
Rg2+ {[%clk 00:01:14]} {[%emt 00:00:05]} 52. Kc1 {[%clk 00:04:22]} {[%emt
00:00:03]} Kb6 {[%clk 00:01:20]} {[%emt 00:00:06]} 53. Ra3 {[%clk 00:04:12]}
{[%emt 00:00:20]} b4 {[%clk 00:01:25]} {[%emt 00:00:05]} 54. Ra8 {[%clk
00:04:20]} {[%emt 00:00:02]} Rxg3 {[%clk 00:00:55]} {[%emt 00:00:40]} 55. Rf8
{[%clk 00:04:27]} {[%emt 00:00:02]} Rg4 {[%clk 00:00:25]} {[%emt 00:00:40]} 56.
Rxf7 {[%clk 00:04:35]} {[%emt 00:00:02]} Rxh4 {[%clk 00:00:34]} {[%emt
00:00:01]} 57. Rf6 {[%clk 00:04:42]} {[%emt 00:00:03]} Kc7 {[%clk 00:00:31]}
{[%emt 00:00:14]} 58. Rxe6 {[%clk 00:04:45]} {[%emt 00:00:06]} Rxf4 {[%clk
00:00:38]} {[%emt 00:00:03]} 59. Rxg6 {[%clk 00:04:53]} {[%emt 00:00:02]} Rxd4
{[%clk 00:00:44]} {[%emt 00:00:05]} 60. Rg7+ {[%emt 00:00:02]} Kd8 {[%emt
00:00:09]} 61. e6 {[%clk 00:04:49]} {[%emt 00:00:03]} h4 {[%clk 00:00:51]}
{[%emt 00:00:04]} 62. Rh7 {[%clk 00:04:51]} {[%emt 00:00:07]} Re4 {[%clk
00:00:52]} {[%emt 00:00:09]} 63. Rd7+ {[%clk 00:04:59]} {[%emt 00:00:02]} Ke8
{[%clk 00:01:00]} {[%emt 00:00:03]} 64. Rxd5 {[%clk 00:05:07]} {[%emt
00:00:02]} h3 {[%clk 00:00:53]} {[%emt 00:00:16]} 65. Rh5 {[%clk 00:05:09]}
{[%emt 00:00:07]} Re3 {[%clk 00:00:59]} {[%emt 00:00:05]} 66. Kd2 {[%clk
00:05:18]} {[%emt 00:00:02]} Rg3 {[%clk 00:01:04]} {[%emt 00:00:05]} 67. Rh7
{[%clk 00:05:17]} {[%emt 00:00:09]} b3 {[%clk 00:01:10]} {[%emt 00:00:05]} 68.
Kc1 {[%clk 00:05:26]} {[%emt 00:00:01]} Re3 {[%clk 00:00:16]} {[%emt 00:01:04]}
69. Kb1 {[%clk 00:05:33]} {[%emt 00:00:03]} Rg3 {[%clk 00:00:17]} {[%emt
00:00:10]} 70. Kb2 {[%clk 00:05:38]} {[%emt 00:00:05]} Kf8 {[%clk 00:00:24]}
{[%emt 00:00:03]} 71. e7+ {[%clk 00:05:28]} {[%emt 00:00:20]} Ke8 {[%clk
00:00:33]} {[%emt 00:00:01]} 72. Kb1 {[%clk 00:05:36]} {[%emt 00:00:02]} Rg1+
{[%clk 00:00:34]} {[%emt 00:00:09]} 73. Kb2 {[%clk 00:05:44]} {[%emt 00:00:01]}
Rg3 {[%clk 00:00:28]} {[%emt 00:00:16]} 74. Kb1 {[%clk 00:05:52]} {[%emt
00:00:02]} Re3 {[%clk 00:00:36]} {[%emt 00:00:03]} 75. Kb2 {[%clk 00:06:00]}
{[%emt 00:00:02]} Kd7 {[%clk 00:00:35]} {[%emt 00:00:11]} 76. Kb1 {[%clk
00:06:00]} {[%emt 00:00:10]} Rf3 {[%clk 00:00:13]} {[%emt 00:00:32]} 77. Kb2
{[%clk 00:06:08]} {[%emt 00:00:01]} Rg3 {[%clk 00:00:16]} {[%emt 00:00:08]} 78.
Kb1 {[%clk 00:06:15]} {[%emt 00:00:02]} Ke8 {[%clk 00:00:22]} {[%emt 00:00:04]}
79. Kb2 {[%clk 00:06:24]} {[%emt 00:00:02]} Rf3 {[%clk 00:00:25]} {[%emt
00:00:08]} 80. Kb1 {[%clk 00:06:32]} {[%emt 00:00:01]} Rf1+ {[%clk 00:00:34]}
{[%emt 00:00:01]} 81. Kb2 {[%clk 00:06:41]} Rf7 {[%clk 00:15:10]} {[%emt
00:00:34]} 82. Kb1 1/2-1/2

[Event "Snabb-SM för veteraner, 65+ 2019"]
[Site "Schackcentrum, Vegagatan 20, Gothenburg, Sweden"]
[Date "2019.10.05"]
[Round "5.4"]
[White "Andersson, Kaj"]
[Black "Landin, Bo"]
[Result "1/2-1/2"]
[TimeControl "15 minutes + 10 seconds per move from move one"]
[WhiteFideId "1709860"]
[BlackFideId "1705261"]
[WhiteElo "2083"]
[BlackElo "1959"]

1. e4 {[%clk 00:15:17]} {[%emt 00:00:02]} e6 {[%clk 00:15:04]} {[%emt
00:00:17]} 2. d4 {[%clk 00:15:21]} {[%emt 00:00:05]} d5 {[%clk 00:15:13]}
{[%emt 00:00:01]} 3. Nc3 {[%clk 00:15:30]} {[%emt 00:00:01]} dxe4 {[%clk
00:15:21]} {[%emt 00:00:02]} 4. Nxe4 {[%clk 00:15:38]} {[%emt 00:00:02]} Nd7
{[%clk 00:15:30]} 5. Nf3 {[%clk 00:15:26]} {[%emt 00:00:23]} Ngf6 {[%clk
00:15:39]} {[%emt 00:00:01]} 6. Ng3 {[%clk 00:15:25]} {[%emt 00:00:11]} b6
{[%clk 00:15:28]} {[%emt 00:00:22]} 7. Bd3 {[%clk 00:15:13]} {[%emt 00:00:21]}
Bb7 {[%clk 00:15:32]} {[%emt 00:00:06]} 8. O-O {[%clk 00:15:18]} {[%emt
00:00:05]} Be7 {[%clk 00:15:21]} {[%emt 00:00:22]} 9. Re1 {[%clk 00:15:13]}
{[%emt 00:00:14]} O-O {[%clk 00:15:25]} {[%emt 00:00:07]} 10. c4 {[%clk
00:15:04]} {[%emt 00:00:19]} c5 {[%clk 00:14:52]} {[%emt 00:00:44]} 11. dxc5
{[%clk 00:14:28]} {[%emt 00:00:46]} Nxc5 {[%clk 00:14:36]} {[%emt 00:00:26]} 12.
Ne5 {[%clk 00:13:59]} {[%emt 00:00:39]} Nxd3 {[%clk 00:13:49]} {[%emt
00:00:57]} 13. Qxd3 {[%clk 00:13:51]} {[%emt 00:00:18]} Qxd3 {[%clk 00:12:40]}
{[%emt 00:01:19]} 14. Nxd3 {[%clk 00:13:59]} {[%emt 00:00:02]} Rfd8 {[%clk
00:12:45]} {[%emt 00:00:05]} 15. Nf4 {[%clk 00:12:35]} {[%emt 00:01:34]} Bb4
{[%clk 00:12:18]} {[%emt 00:00:36]} 16. Rf1 {[%clk 00:12:30]} {[%emt 00:00:15]}
Ng4 {[%clk 00:10:06]} {[%emt 00:02:22]} 17. h3 {[%clk 00:11:49]} {[%emt
00:00:52]} Ne5 {[%clk 00:09:51]} {[%emt 00:00:26]} 18. b3 {[%clk 00:10:45]}
{[%emt 00:01:13]} Bd2 {[%clk 00:08:52]} {[%emt 00:01:09]} 19. Bxd2 {[%clk
00:09:13]} {[%emt 00:01:42]} Rxd2 {[%clk 00:09:01]} {[%emt 00:00:01]} 20. Rfe1
{[%clk 00:08:38]} {[%emt 00:00:45]} Nd3 {[%clk 00:08:09]} {[%emt 00:01:02]} 21.
Nxd3 {[%clk 00:08:00]} {[%emt 00:00:48]} Rxd3 {[%clk 00:08:16]} {[%emt
00:00:03]} 22. Rad1 {[%clk 00:07:38]} {[%emt 00:00:32]} Rad8 {[%clk 00:08:20]}
{[%emt 00:00:06]} 23. Rxd3 {[%clk 00:07:20]} {[%emt 00:00:28]} Rxd3 {[%clk
00:08:29]} {[%emt 00:00:02]} 24. f3 {[%clk 00:05:28]} {[%emt 00:02:02]} Rd2
{[%emt 00:00:16]} 25. Re2 Bc8 {[%emt 00:00:09]} 1/2-1/2

[Event "Snabb-SM för veteraner, 65+ 2019"]
[Site "Schackcentrum, Vegagatan 20, Gothenburg, Sweden"]
[Date "2019.10.05"]
[Round "5.5"]
[White "Kvarby, Anders"]
[Black "Nyberg, Bo"]
[Result "1/2-1/2"]
[TimeControl "15 minutes + 10 seconds per move from move one"]
[WhiteFideId "1746596"]
[BlackFideId "1710583"]
[WhiteElo "1887"]
[BlackElo "1806"]

1. d4 {[%clk 00:15:17]} {[%emt 00:00:02]} d5 {[%clk 00:15:19]} {[%emt
00:00:02]} 2. c4 {[%clk 00:15:24]} {[%emt 00:00:02]} c6 {[%clk 00:15:27]}
{[%emt 00:00:02]} 3. Nf3 {[%clk 00:15:32]} {[%emt 00:00:02]} e6 {[%clk
00:15:35]} {[%emt 00:00:03]} 4. Bf4 {[%clk 00:15:11]} {[%emt 00:00:30]} f5
{[%clk 00:15:36]} {[%emt 00:00:10]} 5. e3 {[%clk 00:14:33]} {[%emt 00:00:48]}
Nf6 {[%clk 00:15:44]} {[%emt 00:00:02]} 6. Nbd2 {[%clk 00:14:14]} {[%emt
00:00:29]} Be7 {[%clk 00:15:47]} {[%emt 00:00:07]} 7. Be2 {[%clk 00:13:47]}
{[%emt 00:00:36]} O-O {[%clk 00:15:53]} {[%emt 00:00:05]} 8. h3 {[%clk
00:13:04]} {[%emt 00:00:53]} Ne4 {[%clk 00:15:57]} {[%emt 00:00:06]} 9. Ne5
{[%clk 00:12:37]} {[%emt 00:00:37]} Bb4 {[%clk 00:15:26]} {[%emt 00:00:41]} 10.
Nef3 {[%clk 00:12:26]} {[%emt 00:00:22]} Nd7 {[%clk 00:14:02]} {[%emt
00:01:34]} 11. a3 {[%clk 00:12:24]} {[%emt 00:00:12]} Ba5 {[%clk 00:13:47]}
{[%emt 00:00:25]} 12. Qc2 {[%clk 00:12:11]} {[%emt 00:00:23]} g5 {[%clk
00:12:03]} {[%emt 00:01:55]} 13. Be5 {[%clk 00:07:52]} {[%emt 00:04:28]} Nxe5
{[%clk 00:11:57]} {[%emt 00:00:15]} 14. dxe5 {[%clk 00:07:55]} {[%emt
00:00:09]} g4 {[%clk 00:11:44]} {[%emt 00:00:23]} 15. b4 {[%clk 00:06:47]}
{[%emt 00:01:17]} gxf3 {[%clk 00:11:42]} {[%emt 00:00:12]} 16. gxf3 {[%clk
00:05:40]} {[%emt 00:01:18]} Nxd2 {[%clk 00:10:25]} {[%emt 00:01:27]} 17. bxa5
{[%clk 00:04:42]} {[%emt 00:01:07]} Nxf3+ {[%clk 00:09:58]} {[%emt 00:00:36]}
18. Bxf3 {[%clk 00:04:40]} {[%emt 00:00:12]} Qxa5+ {[%clk 00:10:04]} {[%emt
00:00:04]} 19. Ke2 {[%clk 00:04:37]} {[%emt 00:00:12]} dxc4 {[%clk 00:07:39]}
{[%emt 00:02:36]} 20. Bh5 {[%clk 00:01:48]} {[%emt 00:02:59]} Qxe5 {[%clk
00:06:45]} {[%emt 00:01:05]} 21. f4 {[%clk 00:01:42]} {[%emt 00:00:16]} Qf6
{[%clk 00:05:56]} {[%emt 00:00:58]} 22. Rhg1+ {[%clk 00:01:40]} {[%emt
00:00:12]} Kh8 {[%clk 00:06:03]} {[%emt 00:00:03]} 23. Rad1 {[%clk 00:01:40]}
{[%emt 00:00:11]} b5 {[%clk 00:05:24]} {[%emt 00:00:49]} 24. Rg3 {[%clk
00:01:27]} {[%emt 00:00:23]} Ba6 {[%clk 00:04:01]} {[%emt 00:01:33]} 25. Rd7
{[%clk 00:01:18]} {[%emt 00:00:19]} Rg8 {[%clk 00:02:31]} {[%emt 00:01:39]} 26.
Rg5 {[%clk 00:00:54]} {[%emt 00:00:35]} Rxg5 {[%clk 00:02:12]} {[%emt
00:00:29]} 27. fxg5 {[%clk 00:01:02]} {[%emt 00:00:02]} Qe5 {[%clk 00:02:20]}
{[%emt 00:00:02]} 28. Kf3 {[%clk 00:00:29]} {[%emt 00:00:44]} c5 {[%clk
00:01:06]} {[%emt 00:01:24]} 29. Qd2 {[%clk 00:00:25]} {[%emt 00:00:14]} Qb8
{[%clk 00:00:32]} {[%emt 00:00:44]} 30. Qc3+ {[%clk 00:00:24]} {[%emt
00:00:11]} Bb7+ {[%clk 00:00:35]} {[%emt 00:00:07]} 31. Kf2+ {[%clk 00:00:22]}
{[%emt 00:00:13]} Qh2+ {[%clk 00:00:38]} {[%emt 00:00:07]} 32. Ke1+ {[%clk
00:00:30]} Qb8 {[%emt 00:00:47]} 33. Ke2+ Ba6 {[%emt 00:00:05]} 34. Kf3+ {[%clk
00:02:30]} {[%emt 00:00:10]} e5 {[%clk 00:00:33]} {[%emt 00:00:30]} 35. Qc2
{[%clk 00:02:34]} {[%emt 00:00:05]} e4+ {[%clk 00:00:37]} {[%emt 00:00:06]} 36.
Kg2 {[%clk 00:02:43]} {[%emt 00:00:01]} Qe5 {[%clk 00:00:43]} {[%emt 00:00:04]}
37. Qd2 {[%clk 00:02:33]} {[%emt 00:00:20]} c3 {[%clk 00:00:42]} {[%emt
00:00:11]} 38. Rd8+ {[%clk 00:02:21]} {[%emt 00:00:23]} Rxd8 {[%clk 00:00:44]}
{[%emt 00:00:08]} 39. Qxd8+ {[%clk 00:02:29]} {[%emt 00:00:01]} Kg7 {[%clk
00:00:49]} {[%emt 00:00:05]} 40. Qd7+ {[%clk 00:02:29]} {[%emt 00:00:09]} Kh8
{[%clk 00:00:49]} {[%emt 00:00:10]} 41. Qd8+ {[%clk 00:02:30]} {[%emt
00:00:09]} Kg7 {[%clk 00:00:57]} {[%emt 00:00:02]} 42. Qd7+ {[%clk 00:02:36]}
{[%emt 00:00:04]} Kh8 {[%clk 00:01:05]} {[%emt 00:00:03]} 43. Qd8+ {[%emt
00:00:17]} 1/2-1/2

[Event "Snabb-SM för veteraner, 65+ 2019"]
[Site "Schackcentrum, Vegagatan 20, Gothenburg, Sweden"]
[Date "2019.10.05"]
[Round "5.6"]
[White "Olsson, Tomas"]
[Black "Olsson, Torgny"]
[Result "1/2-1/2"]
[TimeControl "15 minutes + 10 seconds per move from move one"]
[WhiteFideId "1702696"]
[BlackFideId "1717340"]
[WhiteElo "1973"]
[BlackElo "1716"]

1. e4 {[%clk 00:15:16]} {[%emt 00:00:03]} e6 {[%clk 00:15:14]} {[%emt
00:00:06]} 2. d4 {[%clk 00:15:18]} {[%emt 00:00:08]} d5 {[%clk 00:15:23]}
{[%emt 00:00:01]} 3. Nc3 {[%clk 00:15:22]} {[%emt 00:00:06]} Bb4 {[%clk
00:15:31]} {[%emt 00:00:03]} 4. exd5 {[%emt 00:00:13]} exd5 {[%clk 00:15:23]}
{[%emt 00:00:15]} 5. Bd3 {[%clk 00:15:26]} {[%emt 00:00:06]} Nf6 {[%clk
00:14:52]} {[%emt 00:00:41]} 6. a3 {[%clk 00:15:32]} {[%emt 00:00:04]} Be7
{[%clk 00:13:54]} {[%emt 00:01:08]} 7. Nge2 {[%clk 00:15:11]} {[%emt 00:00:31]}
O-O {[%clk 00:13:49]} {[%emt 00:00:15]} 8. O-O {[%clk 00:15:04]} {[%emt
00:00:17]} Nc6 {[%clk 00:13:15]} {[%emt 00:00:44]} 9. Bf4 {[%clk 00:13:30]}
{[%emt 00:01:43]} Nh5 {[%clk 00:12:28]} {[%emt 00:00:58]} 10. Be3 {[%clk
00:12:48]} {[%emt 00:00:52]} Re8 {[%clk 00:11:23]} {[%emt 00:01:16]} 11. Qd2
{[%clk 00:12:24]} {[%emt 00:00:34]} g6 {[%clk 00:10:36]} {[%emt 00:00:57]} 12.
b4 {[%clk 00:12:22]} {[%emt 00:00:12]} a6 {[%clk 00:10:38]} {[%emt 00:00:09]}
13. Rfe1 {[%clk 00:12:05]} {[%emt 00:00:27]} Ng7 {[%clk 00:10:08]} {[%emt
00:00:40]} 14. Nf4 {[%clk 00:11:35]} {[%emt 00:00:39]} Be6 {[%clk 00:09:50]}
{[%emt 00:00:29]} 15. Re2 {[%clk 00:11:12]} {[%emt 00:00:33]} Bf6 {[%clk
00:09:54]} {[%emt 00:00:06]} 16. Rae1 {[%clk 00:09:47]} {[%emt 00:01:35]} Bxd4
{[%clk 00:09:47]} {[%emt 00:00:17]} 17. Bxd4 {[%clk 00:07:11]} {[%emt
00:02:46]} Nxd4 {[%clk 00:09:41]} {[%emt 00:00:16]} 18. Re3 {[%clk 00:07:14]}
{[%emt 00:00:06]} Nc6 {[%clk 00:06:58]} {[%emt 00:02:54]} 19. Nxe6 {[%clk
00:06:13]} {[%emt 00:01:10]} Rxe6 {[%clk 00:04:25]} {[%emt 00:02:43]} 20. Rxe6
{[%clk 00:05:41]} {[%emt 00:00:43]} Nxe6 {[%clk 00:04:06]} {[%emt 00:00:30]} 21.
Qh6 {[%clk 00:05:37]} {[%emt 00:00:13]} Qg5 {[%clk 00:02:49]} {[%emt 00:01:28]}
22. Qxg5 {[%clk 00:05:36]} {[%emt 00:00:11]} Nxg5 {[%clk 00:02:57]} 23. Nxd5
{[%clk 00:05:42]} {[%emt 00:00:05]} Ne6 {[%clk 00:02:50]} {[%emt 00:00:17]} 24.
g3 {[%clk 00:04:54]} {[%emt 00:00:58]} Kg7 {[%clk 00:02:56]} {[%emt 00:00:05]}
25. Kg2 {[%clk 00:04:33]} {[%emt 00:00:31]} Ncd4 {[%clk 00:02:57]} {[%emt
00:00:09]} 26. f4 {[%clk 00:04:05]} {[%emt 00:00:38]} Rd8 {[%clk 00:02:55]}
{[%emt 00:00:13]} 27. Ne3 {[%clk 00:04:05]} {[%emt 00:00:10]} c5 {[%clk
00:02:33]} {[%emt 00:00:32]} 28. f5 {[%clk 00:04:04]} {[%emt 00:00:11]} gxf5
{[%clk 00:02:37]} {[%emt 00:00:06]} 29. Nxf5+ {[%clk 00:03:51]} {[%emt
00:00:23]} Nxf5 {[%clk 00:02:38]} {[%emt 00:00:09]} 30. Bxf5 {[%clk 00:03:59]}
{[%emt 00:00:02]} Rd2+ {[%clk 00:02:20]} {[%emt 00:00:28]} 31. Kh3 {[%clk
00:03:52]} {[%emt 00:00:16]} Ng5+ {[%clk 00:02:12]} {[%emt 00:00:19]} 32. Kg4
{[%clk 00:03:39]} {[%emt 00:00:23]} h6 {[%clk 00:02:12]} {[%emt 00:00:09]} 33.
h4 {[%clk 00:03:10]} {[%emt 00:00:39]} Rd4+ {[%clk 00:02:01]} {[%emt 00:00:22]}
34. Kh5 {[%clk 00:03:00]} {[%emt 00:00:20]} Nf3 {[%clk 00:02:01]} {[%emt
00:00:10]} 35. Rf1 {[%clk 00:02:10]} {[%emt 00:00:58]} Ne5 {[%clk 00:01:47]}
{[%emt 00:00:26]} 36. bxc5 {[%clk 00:02:09]} {[%emt 00:00:10]} Rd5 {[%clk
00:01:48]} {[%emt 00:00:10]} 37. g4 {[%clk 00:01:34]} {[%emt 00:00:45]} Rxc5
{[%clk 00:01:24]} {[%emt 00:00:35]} 38. g5 {[%clk 00:01:41]} {[%emt 00:00:03]}
hxg5 {[%clk 00:01:26]} {[%emt 00:00:07]} 39. Kxg5 {[%clk 00:01:35]} {[%emt
00:00:15]} f6+ {[%clk 00:01:28]} {[%emt 00:00:09]} 40. Kf4 {[%clk 00:01:28]}
{[%emt 00:00:17]} Rc4+ {[%clk 00:01:28]} {[%emt 00:00:11]} 41. Kg3 {[%clk
00:01:33]} {[%emt 00:00:04]} Rc3+ {[%clk 00:01:32]} {[%emt 00:00:07]} 42. Kh2
{[%clk 00:01:09]} {[%emt 00:00:33]} Rxa3 {[%clk 00:01:14]} {[%emt 00:00:28]} 43.
Rg1+ {[%clk 00:01:11]} {[%emt 00:00:07]} Kh6 {[%clk 00:01:15]} {[%emt
00:00:10]} 44. Rg8 {[%clk 00:00:44]} {[%emt 00:00:37]} b6 {[%clk 00:00:53]}
{[%emt 00:00:32]} 45. Rh8+ {[%clk 00:00:41]} {[%emt 00:00:13]} Kg7 {[%clk
00:01:01]} {[%emt 00:00:02]} 46. Rh7+ {[%clk 00:00:49]} {[%emt 00:00:02]} Kg8
{[%clk 00:01:08]} {[%emt 00:00:02]} 47. Rb7 {[%clk 00:00:49]} {[%emt 00:00:10]}
b5 {[%clk 00:00:47]} {[%emt 00:00:31]} 48. Rb8+ {[%clk 00:00:51]} {[%emt
00:00:08]} Kg7 {[%clk 00:00:53]} {[%emt 00:00:05]} 49. Rb7+ {[%clk 00:00:58]}
{[%emt 00:00:03]} Kf8 {[%clk 00:01:00]} {[%emt 00:00:03]} 50. Rb8+ {[%clk
00:01:04]} {[%emt 00:00:03]} Ke7 {[%clk 00:01:05]} {[%emt 00:00:05]} 51. h5
{[%clk 00:01:06]} {[%emt 00:00:07]} Rf3 {[%clk 00:00:55]} {[%emt 00:00:20]} 52.
Rb7+ {[%clk 00:00:42]} {[%emt 00:00:35]} Kf8 {[%clk 00:00:49]} {[%emt
00:00:17]} 53. Be6 {[%clk 00:00:31]} {[%emt 00:00:20]} Rc3 {[%clk 00:00:42]}
{[%emt 00:00:17]} 54. h6 {[%clk 00:00:30]} {[%emt 00:00:11]} Rxc2+ {[%clk
00:00:40]} {[%emt 00:00:11]} 55. Kg3 {[%clk 00:00:36]} {[%emt 00:00:04]} Rc1
{[%clk 00:00:25]} {[%emt 00:00:26]} 56. Kg2 {[%clk 00:00:24]} {[%emt 00:00:22]}
Rc2+ {[%clk 00:00:21]} {[%emt 00:00:15]} 57. Kg3 {[%clk 00:00:31]} {[%emt
00:00:03]} Rc6 {[%clk 00:00:29]} {[%emt 00:00:02]} 58. h7 {[%clk 00:00:32]}
{[%emt 00:00:08]} Ng6 {[%clk 00:00:36]} {[%emt 00:00:03]} 59. Rb8+ {[%clk
00:00:16]} {[%emt 00:00:26]} Kg7 {[%clk 00:00:40]} {[%emt 00:00:06]} 60. Rb7+
{[%clk 00:00:24]} {[%emt 00:00:02]} Kh6 {[%clk 00:00:48]} {[%emt 00:00:01]} 61.
Bf5 {[%clk 00:00:22]} {[%emt 00:00:13]} Nh8 {[%clk 00:00:49]} {[%emt 00:00:09]}
62. Rb8 {[%clk 00:00:30]} Kg7 {[%clk 00:00:58]} {[%emt 00:00:01]} 63. Rb7+
{[%clk 00:00:36]} {[%emt 00:00:05]} Kh6 {[%clk 00:01:07]} 64. Rb8 {[%clk
00:00:44]} {[%emt 00:00:02]} Kg7 {[%clk 00:00:27]} {[%emt 00:00:50]} 65. Rg8+
{[%clk 00:00:45]} {[%emt 00:00:09]} Kh6 {[%clk 00:00:31]} {[%emt 00:00:06]} 66.
Rxh8 {[%clk 00:00:52]} {[%emt 00:00:03]} Rc3+ {[%clk 00:00:38]} {[%emt
00:00:04]} 67. Kf2 {[%clk 00:00:57]} {[%emt 00:00:04]} Rc5 {[%clk 00:00:44]}
{[%emt 00:00:05]} 68. Bb1 {[%clk 00:00:48]} {[%emt 00:00:19]} f5 {[%clk
00:00:50]} {[%emt 00:00:04]} 69. Rf8 {[%clk 00:00:47]} {[%emt 00:00:11]} Kxh7
{[%clk 00:00:55]} {[%emt 00:00:05]} 70. Rxf5 {[%clk 00:00:44]} {[%emt
00:00:12]} Rxf5+ {[%clk 00:00:59]} {[%emt 00:00:06]} 71. Bxf5+ {[%clk
00:00:51]} {[%emt 00:00:02]} Kg7 {[%clk 00:01:08]} 72. Bd3 {[%clk 00:00:59]}
{[%emt 00:00:04]} Kf6 {[%clk 00:01:17]} {[%emt 00:00:02]} 73. Ke2 {[%clk
00:01:07]} {[%emt 00:00:02]} Ke5 {[%clk 00:01:26]} {[%emt 00:00:01]} 74. Kd2
{[%clk 00:01:15]} {[%emt 00:00:01]} Kd4 {[%clk 00:01:35]} 75. Kc2 {[%clk
00:01:24]} b4 {[%clk 00:01:43]} {[%emt 00:00:03]} 76. Bxa6 {[%emt 00:00:15]}
1/2-1/2